bitfinex-derivatives/quotes_SOLF0:USTF0_20251202
["timestamp","ask_amount","ask_price","bid_price","bid_amount"]
[1764695846172,3.24929226,140.05,140.04,2.96506635]
[1764695846468,3.24929226,140.05,140.03,0.0478829]
[1764695846665,3.24929226,140.05,140.04,1.74317246]
[1764695846868,3.24929226,140.05,140.03,0.0478829]
[1764695848462,3.24929226,140.05,140.04,1.74285311]
[1764695848668,3.24929226,140.05,140.03,0.0478829]
[1764695850168,0.04929226,140.05,140.03,0.0478829]
[1764695850381,0.04929226,140.05,140.04,1.74464833]
[1764695850562,22.23,140.1,140.04,99.9537]
[1764695850768,22.23,140.1,140.08,1.74339678]
[1764695851070,22.23,140.1,140.06,99.9426]
[1764695851369,22.23,140.1,140.07,6.4242]
[1764695851567,22.28166885,140.1,140.07,6.47567741]
[1764695851763,22.28166885,140.1,140.07,15.1996364]
[1764695851964,22.28166885,140.1,140.07,6.47567741]
[1764695852160,22.28166885,140.1,140.07,0.05147741]
[1764695852672,22.28166885,140.1,140.08,6.4239]
[1764695853459,22.28166885,140.1,140.07,0.05147741]
[1764695855972,3.05,140.09,140.07,0.05147741]
[1764695856374,22.28166885,140.1,140.07,0.05147741]
[1764695856575,25.33166885,140.1,140.07,0.05147741]
[1764695857465,3.05,140.09,140.07,0.05147741]
[1764695857774,22.28166885,140.1,140.07,0.05147741]
[1764695857968,3.05,140.09,140.07,0.05147741]
[1764695858772,3.05,140.09,140.08,1.74200436]
[1764695859176,3.05,140.09,140.08,0.00200436]
[1764695859972,3.05,140.09,140.02,6.53319131]
[1764695860173,3.05,140.09,140.03,6.4262]
[1764695860772,3.05,140.09,140.01,6.53319131]
[1764695860970,3.05,140.09,140.05,0.0037657]
[1764695861170,3.11,140.07,140.05,0.0037657]
[1764695862173,3.16281232,140.07,140.05,0.04913925]
[1764695863069,0.05281232,140.07,140.05,0.04913925]
[1764695863270,0.05281232,140.07,140.06,6.53319131]
[1764695864972,0.05281232,140.07,140.05,13.00753056]
[1764695866582,3.16281232,140.07,140.05,13.00753056]
[1764695866782,3.16281232,140.07,140.05,6.47433925]
[1764695867082,3.16281232,140.07,140.05,0.04913925]
[1764695869079,0.05281232,140.07,140.05,0.04913925]
[1764695869481,0.05281232,140.07,140.05,6.47443925]
[1764695869680,16.35,140.1,140.05,120.55145407]
[1764695869880,16.35,140.1,140.06,108.66725899]
[1764695870080,16.35,140.1,140.08,6.4239]
[1764695870481,3.11,140.09,140.05,8.77309824]
[1764695870683,0.04765264,140.08,140.05,0.04913925]
[1764695870982,0.04765264,140.08,140.06,6.4249]
[1764695872091,0.04765264,140.08,140.06,15.14885899]
[1764695872392,3.11,140.15,140.09,99.9222]
[1764695872591,3.11,140.22,140.14,1.7359006]
[1764695872888,3.11,140.22,140.15,1.7359006]
[1764695873091,3.11,140.22,140.09,120.43355886]
[1764695873284,28.73025454,140.25,140.15,1.73431859]
[1764695873285,3.15924436,140.17,140.15,1.73431859]
[1764695873490,3.16178353,140.17,140.16,1.73417001]
[1764695874295,0.05178353,140.17,140.15,0.05331323]
[1764695874890,3.16178353,140.17,140.16,1.73238804]
[1764695876393,3.16178353,140.17,140.07,20.51135886]
[1764695876591,3.16178353,140.17,140.08,99.9293]
[1764695876592,3.11,140.17,140.08,99.9293]
[1764695876783,3.11,140.17,140.09,99.9224]
[1764695876979,3.11,140.17,140.1,6.4229]
[1764695877293,3.11,140.17,140.11,99.9073]
[1764695877488,0.04649633,140.15,140.13,0.05374707]
[1764695878687,0.04649633,140.15,140.14,6.4212]
[1764695878884,0.04649633,140.15,140.13,0.05374707]
[1764695880194,0.04649633,140.15,140.13,6.47544707]
[1764695882093,3.11,140.21,140.17,6.4198]
[1764695882397,3.11,140.25,140.18,1.72668271]
[1764695882600,3.11,140.25,140.2,1.72668271]
[1764695882787,3.11,140.25,140.16,11.83185583]
[1764695882983,3.11,140.25,140.2,1.72583208]
[1764695883190,3.11,140.23,140.21,0.04758262]
[1764695884296,0.05075159,140.24,140.22,1.72379722]
[1764695884485,0.05075159,140.24,140.21,0.04758262]
[1764695884890,0.05075159,140.24,140.22,6.4175]
[1764695885094,0.05075159,140.24,140.23,1.72416711]
[1764695885394,20.58,140.27,140.22,99.8269]
[1764695885588,20.58,140.27,140.26,1.72244647]
[1764695885786,3.11,140.26,140.25,1.72256473]
[1764695886197,3.11,140.26,140.16,61.68]
[1764695886400,3.11,140.26,140.2,0.04665767]
[1764695886401,0.05240544,140.22,140.2,0.04665767]
[1764695886589,3.11,140.26,140.2,6.46495767]
[1764695886896,3.11,140.26,140.2,0.04665767]
[1764695887195,3.11,140.26,140.23,1.72464648]
[1764695887494,3.16191688,140.26,140.23,0.05125289]
[1764695887883,3.16191688,140.26,140.15,11.83185583]
[1764695887884,3.11,140.24,140.15,11.83185583]
[1764695888289,3.11,140.24,140.12,161.6175]
[1764695888489,3.11,140.23,140.12,99.8975]
[1764695888692,3.11,140.23,140.11,120.41785886]
[1764695888892,3.23658059,140.18,140.16,0.04782045]
[1764695889090,3.23612439,140.18,140.16,0.04728671]
[1764695889296,0.04612439,140.18,140.16,0.04728671]
[1764695890295,3.23612439,140.18,140.17,1.72908937]
[1764695890690,0.04612439,140.18,140.16,0.04728671]
[1764695892202,3.23612439,140.18,140.16,0.04728671]
[1764695893199,0.04612439,140.18,140.16,0.04728671]
[1764695894300,0.04612439,140.18,140.16,6.46738671]
[1764695894906,3.23612439,140.18,140.16,0.04728671]
[1764695895508,3.23612439,140.18,140.1,191.71849752]
[1764695895509,3.23612439,140.18,140.17,0.00271134]
[1764695895707,3.23612439,140.18,140.07,8.67950303]
[1764695895902,3.19,140.15,140.04,8.67950303]
[1764695896099,3.19,140.12,140.04,6.4257]
[1764695896304,3.19,140.12,140.03,108.64500303]
[1764695896496,3.19,140.16,140.08,6.4236]
[1764695896806,3.19,140.12,140.11,1.78907642]
[1764695896998,3.19,140.12,140.11,0.05404335]
[1764695897194,3.19,140.12,140.11,1.78979959]
[1764695897393,3.19,140.16,140.11,0.05404335]
[1764695897610,3.19,140.16,140.15,1.73371104]
[1764695898305,3.19,140.16,140.12,6.4222]
[1764695898705,3.24260074,140.15,140.13,0.05497663]
[1764695898908,3.23573097,140.15,140.13,0.05497663]
[1764695899699,3.23573097,140.15,140.14,0.00432067]
[1764695900108,3.23573097,140.15,140.08,99.9297]
[1764695901019,3.23573097,140.15,140.14,1.73313306]
[1764695901309,3.23573097,140.15,140.06,11.83185583]
[1764695901503,3.19,140.15,140.06,11.83185583]
[1764695902503,3.19,140.15,140.11,1.73185968]
[1764695902698,3.24432549,140.12,140.09,0.04536698]
[1764695902913,3.23657428,140.12,140.09,0.05199277]
[1764695904214,3.23657428,140.12,140.1,1.73214703]
[1764695906417,3.23657428,140.12,140.11,1.73214703]
[1764695906712,3.23657428,140.12,140.1,1.73214703]
[1764695906917,3.23657428,140.12,140.09,0.05199277]
[1764695907214,0.04657428,140.12,140.1,1.7318574]
[1764695907406,0.04657428,140.12,140.1,6.94566682]
[1764695907811,0.04657428,140.12,140.1,13.36856682]
[1764695908010,0.04657428,140.12,140.09,0.05199277]
[1764695908412,0.04657428,140.12,140.1,6.94566682]
[1764695908612,0.04657428,140.12,140.09,0.05199277]
[1764695908809,3.23657428,140.12,140.09,0.05199277]
[1764695909113,0.04657428,140.12,140.09,0.05199277]
[1764695909307,0.04657428,140.12,140.1,6.94566682]
[1764695911613,0.04657428,140.12,140.09,0.05199277]
[1764695913114,3.23,140.18,140.1,6.94566682]
[1764695913415,3.23,140.17,140.15,1.73174507]
[1764695914115,3.28153388,140.17,140.15,1.77966489]
[1764695914621,3.28153388,140.17,140.15,0.04791982]
[1764695914812,3.23,140.16,140.1,15.62516985]
[1764695915013,3.23,140.16,140.1,8.67950303]
[1764695915318,3.23,140.16,140.09,8.67950303]
[1764695915711,9.651,140.15,140.09,8.67950303]
[1764695915923,0.05281318,140.13,140.11,0.05028786]
[1764695916319,3.28281318,140.13,140.11,0.05028786]
[1764695918015,3.28281318,140.13,140.12,0.00441493]
[1764695918210,3.28281318,140.13,140.11,0.05028786]
[1764695920826,3.28281318,140.13,140.05,8.67950303]
[1764695921119,6.4223,140.12,140.09,1.73541277]
[1764695921323,3.1,140.11,140.09,1.73541277]
[1764695921722,3.1,140.1,140.09,1.73541277]
[1764695922022,3.1,140.1,140.09,1.78864367]
[1764695922215,3.1,140.1,140.09,0.0532309]
[1764695923522,3.1,140.08,140.02,6.94566682]
[1764695923729,3.1,140.08,140.07,1.73222712]
[1764695924518,3.14707155,140.09,140.07,1.73222712]
[1764695924733,3.14515436,140.09,140.07,1.77790703]
[1764695925023,3.14515436,140.09,140.07,0.04567991]
[1764695925216,3.14515436,140.09,140.07,1.77738918]
[1764695925414,3.14515436,140.09,140.07,0.04567991]
[1764695925613,3.14515436,140.09,140.07,1.77772659]
[1764695925818,9.56875436,140.09,140.07,0.04567991]
[1764695926019,3.1,140.08,140.07,1.7779633]
[1764695926221,3.1,140.08,140.07,0.04567991]
[1764695926422,3.1,140.08,140.07,1.77717016]
[1764695926623,3.1,140.08,140.07,0.04567991]
[1764695926823,3.1,140.08,140.07,1.77735411]
[1764695927125,3.1,140.08,140.07,0.04567991]
[1764695927631,3.1,140.08,140.07,1.7771813]
[1764695927831,3.1,140.08,140.07,0.04567991]
[1764695928027,3.1,140.08,140.07,1.7774683]
[1764695928227,3.1,140.08,140.07,0.04567991]
[1764695929535,3.14515436,140.09,140.07,0.04567991]
[1764695929735,3.14515436,140.09,140.08,1.73216577]
[1764695930435,0.04515436,140.09,140.08,1.73216577]
[1764695930642,0.04515436,140.09,140.08,2.96404146]
[1764695930830,0.04515436,140.09,140.07,3.00972137]
[1764695932240,24.2,140.13,140.07,4.42972137]
[1764695932537,24.2,140.13,140.12,2.96404146]
[1764695934236,22.41123706,140.13,140.12,2.96404146]
[1764695934437,22.41123706,140.13,140.11,15.66992469]
[1764695934642,0.05501728,140.14,140.11,8.73171059]
[1764695935044,0.05501728,140.14,140.11,0.05220756]
[1764695935349,0.05501728,140.14,140.11,15.66992469]
[1764695935537,3.1,140.22,140.12,8.67950303]
[1764695935742,3.1,140.22,140.14,8.67950303]
[1764695935940,3.1,140.22,140.13,8.67950303]
[1764695936139,102.9373,140.21,140.11,15.61771713]
[1764695936335,3.1,140.19,140.1,8.67950303]
[1764695936739,3.1,140.18,140.15,1.73031882]
[1764695936946,3.15287879,140.16,140.13,0.0451706]
[1764695938035,3.15287879,140.16,140.14,1.73189979]
[1764695939348,0.05287879,140.16,140.15,1.73189979]
[1764695940249,3.1,140.23,140.15,0.4]
[1764695940555,3.1,140.23,140.2,1.73089425]
[1764695940741,3.1,140.23,140.16,0.4]
[1764695940938,3.1,140.23,140.2,1.73110785]
[1764695941242,23.81,140.24,140.2,1.73110785]
[1764695941243,23.81,140.24,140.21,0.4]
[1764695941445,3.14613593,140.23,140.2,0.04709431]
[1764695941740,3.14613593,140.23,140.21,1.72963243]
[1764695942349,3.1,140.22,140.14,0.4]
[1764695942748,3.1,140.22,140.12,8.67950303]
[1764695942749,3.1,140.21,140.12,8.67950303]
[1764695942946,3.1,140.21,140.13,8.67950303]
[1764695943149,3.1,140.21,140.15,2.13]
[1764695943345,3.1,140.21,140.2,1.73001939]
[1764695943646,3.1,140.21,140.17,0.05159574]
[1764695943847,3.1,140.21,140.18,1.73015977]
[1764695944040,3.1,140.21,140.17,0.05159574]
[1764695944243,102.9372,140.21,140.17,0.05159574]
[1764695944445,3.1,140.19,140.17,0.05159574]
[1764695944844,99.8658,140.17,140.1,8.67950303]
[1764695945051,3.1,140.15,140.13,0.00208716]
[1764695945648,3.1,140.15,140.08,2.18]
[1764695945949,0.05075537,140.13,140.1,3.10071683]
[1764695948859,0.05075537,140.13,140.12,3.2]
[1764695951453,0.05075537,140.13,140.1,3.25071683]
[1764695951653,3.26075537,140.13,140.11,1.73270375]
[1764695952054,3.21,140.11,140.04,3.2]
[1764695952852,61.82,140.15,140.04,3.2]
[1764695953058,3.25549287,140.11,140.1,1.73357187]
[1764695953259,3.21,140.11,140.1,1.73357187]
[1764695953657,3.21,140.1,140.03,8.67950303]
[1764695953863,3.21,140.1,140.07,1.73395179]
[1764695954166,3.21,140.09,140.07,1.73395179]
[1764695954661,3.26158642,140.09,140.07,1.73395179]
[1764695955058,3.26158642,140.09,140.01,11.87950303]
[1764695955059,3.21,140.08,140.06,1.73395179]
[1764695955552,3.21,140.07,140.06,1.73395179]
[1764695958456,3.26158642,140.09,140.06,1.73395179]
[1764695959259,3.26158642,140.09,140.05,1.73395179]
[1764695959553,3.26158642,140.09,140.01,3.2]
[1764695959554,3.21,140.08,140.06,1.73051897]
[1764695960467,3.21,140.08,140.07,1.73051897]
[1764695960967,3.21,140.08,140.01,3.2]
[1764695961171,3.21,140.08,140.07,1.72885684]
[1764695961556,3.21,140.08,140.0,8.67950303]
[1764695961762,3.26129103,140.05,139.97,3.2]
[1764695961961,6.4267,140.03,139.97,3.2]
[1764695962262,3.21,140.12,139.99,10.1382141]
[1764695962565,3.21,140.12,140.03,3.2]
[1764695962767,3.21,140.12,140.08,1.72849743]
[1764695963070,61.88,140.14,140.02,15.61771713]
[1764695963071,3.21,140.13,140.09,1.72849743]
[1764695963270,6.47520502,140.12,140.1,0.04862007]
[1764695963468,0.05290502,140.12,140.1,0.04862007]
[1764695963767,0.05290502,140.12,140.04,3.2]
[1764695964066,0.05290502,140.12,140.07,1.72877493]
[1764695964465,99.95760502,140.12,140.06,1.72877493]
[1764695964671,0.05290502,140.12,140.07,1.72877493]
[1764695965066,6.4228,140.11,140.07,1.72877493]
[1764695965971,99.9088,140.11,140.04,3.2]
[1764695966161,0.0521606,140.09,140.05,1.73114012]
[1764695966366,61.86,140.08,140.05,1.73114012]
[1764695967065,68.2842,140.08,140.05,1.73114012]
[1764695968069,6.4247,140.07,140.04,1.73114012]
[1764695968275,0.05244553,140.07,140.03,1.73114012]
[1764695968473,0.05349378,140.06,140.02,1.73114012]
[1764695968677,0.04848266,140.05,140.03,1.73114012]
[1764695969574,0.04848266,140.05,140.04,1.73114012]
[1764695969774,118.04858662,140.06,139.97,20.51831295]
[1764695969976,118.0,140.06,140.04,1.73039005]
[1764695970183,0.04991899,140.06,140.04,1.73039005]
[1764695970474,0.04991899,140.06,140.05,1.73039005]
[1764695970680,0.04671037,140.07,139.98,6.4283]
[1764695970881,0.05224688,140.04,139.98,6.4283]
[1764695971083,0.05224688,140.04,139.97,120.52071295]
[1764695971283,0.05224688,140.04,140.0,6.4275]
[1764695971676,0.05224688,140.04,139.97,20.51831295]
[1764695972783,0.05224688,140.04,139.98,6.4285]
[1764695973182,0.05224688,140.04,139.97,20.51831295]
[1764695973374,0.05224688,140.04,139.98,8.67950303]
[1764695973573,0.05224688,140.04,139.97,20.51831295]
[1764695973876,0.05224688,140.04,139.99,6.4281]
[1764695974075,0.05224688,140.04,139.98,8.67950303]
[1764695974477,0.05224688,140.04,139.99,6.4281]
[1764695974681,0.05224688,140.04,139.97,20.51831295]
[1764695975385,0.05224688,140.04,139.99,6.4278]
[1764695975875,0.05224688,140.04,139.98,100.0]
[1764695976074,0.05224688,140.04,140.01,8.67950303]
[1764695976482,0.05224688,140.04,140.02,6.4267]
[1764695977475,0.05224688,140.04,140.0,15.10680303]
[1764695977682,0.05224688,140.04,140.0,6.4273]
[1764695978183,0.05224688,140.04,139.99,8.67950303]
[1764695978184,0.05224688,140.04,140.01,6.4272]
[1764695979782,0.05224688,140.04,140.02,6.4264]
[1764695980778,0.05224688,140.04,140.0,26.94561295]
[1764695981087,0.05224688,140.04,140.0,11.83880992]
[1764695981587,0.05224688,140.04,139.99,8.67950303]
[1764695981984,0.05224688,140.04,139.97,20.51831295]
[1764695982376,0.05224688,140.04,139.99,6.428]
[1764695982577,24.89224688,140.04,139.98,8.67950303]
[1764695982783,24.89224688,140.04,139.97,8.67950303]
[1764695983084,24.89224688,140.04,139.97,15.10850303]
[1764695983281,24.89224688,140.04,140.03,1.73318409]
[1764695985884,26.31224688,140.04,140.03,1.73318409]
[1764695986081,26.31224688,140.04,139.96,6.4293]
[1764695986282,24.89224688,140.04,140.0,1.73508707]
[1764695986485,0.04544947,140.03,139.94,8.67950303]
[1764695986679,0.05052039,140.0,139.94,8.67950303]
[1764695986884,0.05052039,140.0,139.95,6.4299]
[1764695987080,0.05052039,140.0,139.93,108.71310303]
[1764695987485,0.05052039,140.0,139.94,8.67950303]
[1764695987883,0.05052039,140.0,139.95,100.0224]
[1764695988890,0.05052039,140.0,139.95,8.67950303]
[1764695989198,0.05052039,140.0,139.94,108.70470303]
[1764695989489,0.05052039,140.0,139.95,8.67950303]
[1764695989989,0.05052039,140.0,139.98,6.4285]
[1764695990182,0.05052039,140.0,139.92,8.67950303]
[1764695990384,0.05052039,140.0,139.98,1.74080874]
[1764695990780,0.05052039,140.0,139.97,1.74080874]
[1764695990983,0.05052039,140.0,139.98,1.74080874]
[1764695992590,1.47052039,140.0,139.97,1.74080874]
[1764695992887,1.47052039,140.0,139.89,13.08267679]
[1764695992888,0.04630688,140.0,139.96,1.74080874]
[1764695993189,0.04973678,139.99,139.96,1.74222479]
[1764695994089,0.04973678,139.99,139.95,1.74222479]
[1764695994292,0.04530488,139.98,139.95,1.74222479]
[1764695994478,0.04530488,139.98,139.87,8.67950303]
[1764695994479,0.04829283,139.98,139.87,8.67950303]
[1764695994681,0.04711145,139.94,139.93,1.74311157]
[1764695994888,0.04610812,139.95,139.94,1.74311157]
[1764695995097,0.04923346,139.96,139.88,8.67950303]
[1764695995391,24.84,140.04,139.93,8.67950303]
[1764695995589,24.84,140.04,139.99,1.74168635]
[1764695996491,0.05322356,140.03,140.0,0.04682261]
[1764695996681,0.05122626,140.03,140.0,0.04682261]
[1764696000890,0.05122626,140.03,140.01,1.74072312]
[1764696001594,0.05122626,140.03,140.02,1.74072312]
[1764696001785,22.69618249,140.04,140.01,13.25880992]
[1764696001986,22.69618249,140.04,140.01,8.67950303]
[1764696002185,85.68,140.19,140.02,10.09950303]
[1764696002496,85.68,140.19,140.1,1.73952544]
[1764696002497,61.88,140.18,140.1,1.73952544]
[1764696002682,0.05213347,140.15,140.13,0.0549275]
[1764696002888,0.05213347,140.15,140.03,8.67950303]
[1764696003084,99.8801,140.15,140.07,1.73771189]
[1764696003394,111.71700992,140.16,140.08,1.73771189]
[1764696003593,61.88,140.14,140.08,1.73771189]
[1764696003796,0.05143521,140.12,140.1,0.04312137]
[1764696005797,0.05143521,140.12,140.0,31.34898671]
[1764696005798,0.05143521,140.12,140.0,8.67950303]
[1764696005997,121.3119,140.12,140.05,1.73925818]
[1764696006195,121.3119,140.12,139.99,8.67950303]
[1764696006196,6.4233,140.1,139.99,8.67950303]
[1764696006395,61.86,140.09,140.05,1.73972065]
[1764696006703,0.04999044,140.08,140.05,1.73972065]
[1764696006896,0.04999044,140.08,139.98,8.67950303]
[1764696007196,0.05147199,140.04,139.98,8.67950303]
[1764696007494,0.05147199,140.04,140.0,8.67950303]
[1764696010202,118.0,140.15,140.02,8.67950303]
[1764696010401,61.84,140.15,140.09,1.7364114]
[1764696010889,185.5328,140.19,140.1,1.7364114]
[1764696011092,185.5349,140.19,140.11,1.7364114]
[1764696011395,0.04672467,140.16,140.14,0.05147199]
[1764696011592,0.05111447,140.16,140.14,0.04719625]
[1764696011793,6.4212,140.15,140.04,8.67950303]
[1764696011998,6.4212,140.15,140.1,1.73690457]
[1764696012498,99.8875,140.14,140.1,1.73690457]
[1764696012707,0.04612029,140.13,140.02,8.67950303]
[1764696012901,0.0535494,140.09,140.01,8.67950303]
[1764696013105,0.0535494,140.09,140.0,8.67950303]
[1764696013306,0.04576613,140.06,140.0,8.67950303]
[1764696013704,0.04576613,140.06,140.0,15.10700303]
[1764696014006,0.04576613,140.06,140.01,8.67950303]
[1764696015008,0.04576613,140.06,140.0,8.67950303]
[1764696017514,0.04576613,140.06,140.01,8.67950303]
[1764696018014,0.04576613,140.06,140.01,15.10640303]
[1764696018314,0.04576613,140.06,140.01,8.67950303]
[1764696018514,0.04576613,140.06,140.0,8.67950303]
[1764696018708,0.04576613,140.06,140.01,6.4271]
[1764696019015,0.04576613,140.06,140.01,15.10660303]
[1764696020008,0.04576613,140.06,140.02,108.65200303]
[1764696020206,99.8774,140.16,140.05,8.67950303]
[1764696020407,61.8,140.18,140.11,1.73695156]
[1764696020607,61.8,140.18,140.12,1.73695156]
[1764696020912,6.4209,140.15,140.06,6.4248]
[1764696021114,99.8662,140.17,140.12,1.7359224]
[1764696021415,0.04974948,140.16,140.13,0.04978103]
[1764696022813,0.04974948,140.16,140.14,1.73329277]
[1764696023409,0.04974948,140.16,140.15,1.73329277]
[1764696023609,0.04974948,140.16,140.13,0.04978103]
[1764696025218,0.04974948,140.16,140.15,1.73250487]
[1764696025418,0.04974948,140.16,140.13,0.04978103]
[1764696026507,0.04974948,140.16,140.14,2.99]
[1764696029718,18.02,140.21,140.14,2.99]
[1764696029925,18.02,140.21,140.2,1.7289621]
[1764696030123,18.02,140.21,140.2,4.7189621]
[1764696030319,3.13,140.25,140.2,2.99]
[1764696030523,6.4174,140.23,140.16,2.99]
[1764696030720,0.04510887,140.21,140.2,1.72834447]
[1764696031119,3.17510887,140.21,140.18,0.04516278]
[1764696031324,3.17510887,140.21,140.19,1.72827059]
[1764696031526,0.04510887,140.21,140.19,1.72827059]
[1764696031727,0.04510887,140.21,140.2,4.71827059]
[1764696031928,0.04510887,140.21,140.2,2.99]
[1764696033519,0.04510887,140.21,140.19,3.03]
[1764696033722,0.04510887,140.21,140.2,1.72374897]
[1764696033923,2.99510887,140.21,140.2,1.72374897]
[1764696034117,2.99510887,140.21,140.19,1.72374897]
[1764696034329,2.99510887,140.21,140.18,0.04516278]
[1764696034529,2.99510887,140.21,140.19,1.72426481]
[1764696034931,0.04510887,140.21,140.19,1.72426481]
[1764696035235,0.04510887,140.21,140.19,4.75426481]
[1764696035440,2.99510887,140.21,140.18,0.04516278]
[1764696035636,2.99510887,140.21,140.19,1.72509325]
[1764696035840,2.99510887,140.21,140.18,0.04516278]
[1764696037433,2.99510887,140.21,140.19,1.72693195]
[1764696037840,2.99510887,140.21,140.18,0.04516278]
[1764696039239,9.41340887,140.21,140.18,0.04516278]
[1764696039437,3.19,140.2,140.18,0.04516278]
[1764696039633,0.04510887,140.21,140.18,0.04516278]
[1764696039834,3.23510887,140.21,140.19,1.72925879]
[1764696040443,0.04510887,140.21,140.2,1.72925879]
[1764696042036,0.04510887,140.21,140.19,3.01]
[1764696042841,0.04510887,140.21,140.2,1.72915814]
[1764696043529,0.04510887,140.21,140.2,4.73915814]
[1764696043835,0.04510887,140.21,140.2,3.01]
[1764696044138,0.04510887,140.21,140.19,3.01]
[1764696045744,3.19,140.27,140.19,3.01]
[1764696045945,3.19,140.27,140.23,3.01]
[1764696046136,3.19,140.27,140.19,6.4187]
[1764696046335,9.6058,140.26,140.23,1.72919684]
[1764696046541,3.19,140.25,140.23,1.72919684]
[1764696046742,3.24130774,140.25,140.23,1.78061846]
[1764696047047,3.24130774,140.25,140.23,0.05142162]
[1764696047349,0.05130774,140.25,140.24,4.74008321]
[1764696047534,0.05130774,140.25,140.24,3.01]
[1764696048139,0.05130774,140.25,140.23,0.05142162]
[1764696048339,3.24130774,140.25,140.24,1.72908588]
[1764696049643,3.24130774,140.25,140.23,0.05142162]
[1764696050238,9.6067,140.24,140.23,0.05142162]
[1764696050646,3.19,140.23,140.14,3.01]
[1764696050940,3.19,140.23,140.2,1.72909757]
[1764696051145,64.85,140.24,140.2,3.01]
[1764696051448,64.85,140.24,140.22,1.72907748]
[1764696051748,64.89729074,140.24,140.22,0.0544227]
[1764696051944,64.89729074,140.24,140.22,1.78368352]
[1764696052134,64.89729074,140.24,140.22,0.0544227]
[1764696052340,68.12429074,140.24,140.22,1.78378691]
[1764696052538,71.31429074,140.24,140.22,0.0544227]
[1764696052732,3.19,140.23,140.22,1.78448275]
[1764696052935,3.19,140.23,140.22,0.0544227]
[1764696053741,3.19,140.22,140.14,3.01]
[1764696053948,3.19,140.22,140.18,1.7313487]
[1764696054443,3.19,140.22,140.09,15.61789629]
[1764696054444,3.19,140.18,140.1,3.01]
[1764696054654,0.04920923,140.15,140.13,0.03905589]
[1764696054946,3.23920923,140.15,140.13,0.03905589]
[1764696055140,9.66010923,140.15,140.13,0.03905589]
[1764696055744,0.04920923,140.15,140.13,0.03905589]
[1764696056145,0.04920923,140.15,140.13,3.04905589]
[1764696058244,3.19,140.2,140.13,3.04905589]
[1764696058446,3.19,140.2,140.18,1.73491853]
[1764696058635,9.6091,140.19,140.18,1.73491853]
[1764696058842,3.19,140.18,140.17,1.73491853]
[1764696060349,0.0542354,140.19,140.16,3.06214055]
[1764696060546,0.0542354,140.19,140.18,1.73674605]
[1764696060748,3.2442354,140.19,140.18,1.73674605]
[1764696062456,0.0542354,140.19,140.18,3.01]
[1764696066348,0.0542354,140.19,140.18,3.01]
[1764696066939,3.2442354,140.19,140.16,3.06214055]
[1764696067138,3.2442354,140.19,140.18,1.74329488]
[1764696067454,0.0542354,140.19,140.16,3.06214055]
[1764696068144,0.0542354,140.19,140.18,1.74381068]
[1764696068347,0.0542354,140.19,140.16,3.06214055]
[1764696068651,3.19,140.25,140.18,3.23]
[1764696068958,3.19,140.25,140.22,1.74288899]
[1764696069147,3.19,140.25,140.21,3.23]
[1764696069447,3.24,140.23,140.22,1.74292548]
[1764696069751,3.24,140.23,140.21,0.05473862]
[1764696069956,9.70989027,140.23,140.21,1.79478378]
[1764696070146,3.24,140.22,140.21,0.05132357]
[1764696070452,3.24,140.22,140.21,1.79565454]
[1764696070646,3.24,140.22,140.21,0.05132357]
[1764696070848,3.24,140.22,140.21,1.79571014]
[1764696071041,3.24,140.22,140.21,0.05132357]
[1764696071240,3.24,140.22,140.21,1.79513275]
[1764696071454,3.24,140.22,140.21,0.05132357]
[1764696071656,0.05239027,140.23,140.21,0.05132357]
[1764696071953,3.29239027,140.23,140.22,1.74357396]
[1764696073151,3.29239027,140.23,140.21,0.05132357]
[1764696073444,9.6576,140.22,140.21,0.05132357]
[1764696073849,71.2976,140.22,140.21,0.05132357]
[1764696075454,61.64,140.22,140.21,0.05132357]
[1764696075656,0.05239027,140.23,140.21,0.05132357]
[1764696076247,0.05239027,140.23,140.21,3.28132357]
[1764696076454,0.05239027,140.23,140.22,4.97440701]
[1764696076656,0.05239027,140.23,140.22,3.23]
[1764696077657,0.05239027,140.23,140.21,3.28132357]
[1764696080453,0.05239027,140.23,140.21,11.9608266]
[1764696080653,0.05239027,140.23,140.22,3.23]
[1764696082552,23.81,140.25,140.23,3.23]
[1764696082758,6.3504687,140.3,140.24,8.705731]
[1764696082759,3.1104687,140.3,140.24,8.705731]
[1764696083059,3.1104687,140.3,140.28,1.74075241]
[1764696083460,6.40502305,140.3,140.28,0.05283016]